fUST/lending_fUST_20260703
["ID","MTS","AMOUNT","RATE_DAILY","PERIOD"]
[426926813,1783020639000,-2154.83,0.00029041,7]
[426926802,1783020639000,-500.0,0.00029041,7]
[426926788,1783020639000,-500.0,0.00029041,7]
[426926776,1783020639000,-500.0,0.0002904,7]
[426926785,1783020639000,-500.0,0.00029041,7]
[426926759,1783020639000,-151.0,0.000289,16]
[426926760,1783020639000,-151.0,0.000289,15]
[426926761,1783020639000,-49835.99730409,0.00028941,2]
[426926762,1783020639000,-1000.0,0.00028941,2]
[426926774,1783020639000,-500.0,0.0002904,7]
[426926764,1783020639000,-153.0,0.00029,2]
[426926763,1783020639000,-605.0,0.00029,2]
[426926765,1783020639000,-324.0,0.00029,2]
[426926766,1783020639000,-220.0,0.00029,2]
[426926771,1783020639000,-500.0,0.0002904,7]
[426926769,1783020639000,-53.69420721,0.0002904,7]
[426926772,1783020639000,-500.0,0.0002904,7]
[426926770,1783020639000,-500.0,0.0002904,7]
[426926767,1783020639000,-233.0,0.00029,2]
[426926773,1783020639000,-500.0,0.0002904,7]
[426926768,1783020639000,-1116.31435989,0.00029034,2]
[426926775,1783020639000,-500.0,0.0002904,7]
[426926777,1783020639000,-500.0,0.0002904,7]
[426926779,1783020639000,-500.0,0.0002904,7]
[426926780,1783020639000,-500.0,0.0002904,7]
[426926781,1783020639000,-246.529135,0.0002904,7]
[426926778,1783020639000,-500.0,0.0002904,7]
[426926782,1783020639000,-500.0,0.00029041,7]
[426926783,1783020639000,-500.0,0.00029041,7]
[426926787,1783020639000,-500.0,0.00029041,7]
[426926786,1783020639000,-326.97722344,0.00029041,7]
[426926784,1783020639000,-500.0,0.00029041,7]
[426926789,1783020639000,-500.0,0.00029041,7]
[426926815,1783020639000,-2154.83,0.00029041,7]
[426926826,1783020639000,-611.0284332,0.00029041,7]
[426926817,1783020639000,-2154.83,0.00029041,7]
[426926859,1783020639000,-500.0,0.00029041,7]
[426926861,1783020639000,-500.0,0.00029041,7]
[426926855,1783020639000,-500.0,0.00029041,7]
[426926856,1783020639000,-500.0,0.00029041,7]
[426926851,1783020639000,-500.0,0.00029041,7]
[426926853,1783020639000,-500.0,0.00029041,7]
[426926858,1783020639000,-500.0,0.00029041,7]
[426926860,1783020639000,-500.0,0.00029041,7]
[426926857,1783020639000,-500.0,0.00029041,7]
[426926874,1783020639000,-504.49220402,0.00029041,7]
[426926863,1783020639000,-500.0,0.00029041,7]
[426926862,1783020639000,-500.0,0.00029041,7]
[426926854,1783020639000,-500.0,0.00029041,7]
[426926864,1783020639000,-500.0,0.00029041,7]
[426926868,1783020639000,-500.0,0.00029041,7]
[426926866,1783020639000,-387.98,0.00029041,7]
[426926867,1783020639000,-311.6096555,0.00029041,7]
[426926870,1783020639000,-367.55682457,0.00029041,7]
[426926869,1783020639000,-500.0,0.00029041,7]
[426926872,1783020639000,-500.0,0.00029041,7]
[426926871,1783020639000,-506.35637295,0.00029041,7]
[426926875,1783020639000,-500.0,0.00029041,7]
[426926877,1783020639000,-353.32833906,0.00029041,7]
[426926878,1783020639000,-500.0,0.00029041,7]
[426926879,1783020639000,-503.0349974,0.00029041,7]
[426926819,1783020639000,-2154.83,0.00029041,7]
[426926865,1783020639000,-500.0,0.00029041,7]
[426926852,1783020639000,-500.0,0.00029041,7]
[426926873,1783020639000,-500.0,0.00029041,7]
[426926845,1783020639000,-500.0,0.00029041,7]
[426926850,1783020639000,-500.0,0.00029041,7]
[426926818,1783020639000,-2154.83,0.00029041,7]
[426926822,1783020639000,-2154.83,0.00029041,7]
[426926820,1783020639000,-2154.83,0.00029041,7]
[426926823,1783020639000,-2154.83,0.00029041,7]
[426926816,1783020639000,-2154.83,0.00029041,7]
[426926829,1783020639000,-650.0,0.00029041,2]
[426926830,1783020639000,-200.0,0.00029041,2]
[426926827,1783020639000,-1000.0,0.00029041,2]
[426926837,1783020639000,-500.0,0.00029041,7]
[426926828,1783020639000,-370.0,0.00029041,2]
[426926832,1783020639000,-210.0,0.00029041,2]
[426926831,1783020639000,-240.0,0.00029041,2]
[426926833,1783020639000,-500.0,0.00029041,7]
[426926821,1783020639000,-2154.83,0.00029041,7]
[426926842,1783020639000,-500.0,0.00029041,7]
[426926835,1783020639000,-440.0,0.00029041,2]
[426926836,1783020639000,-220.0,0.00029041,2]
[426926849,1783020639000,-500.0,0.00029041,7]
[426926839,1783020639000,-566.60760209,0.00029041,7]
[426926841,1783020639000,-500.0,0.00029041,7]
[426926838,1783020639000,-500.0,0.00029041,7]
[426926844,1783020639000,-500.0,0.00029041,7]
[426926843,1783020639000,-500.0,0.00029041,7]
[426926834,1783020639000,-450.0,0.00029041,7]
[426926848,1783020639000,-166.78363913,0.00029041,7]
[426926846,1783020639000,-500.0,0.00029041,7]
[426926847,1783020639000,-500.0,0.00029041,7]
[426926915,1783020640000,-765.66,0.00029041,7]
[426926917,1783020640000,-765.66,0.00029041,7]
[426926909,1783020640000,-765.66,0.00029041,7]
[426926920,1783020640000,-765.66,0.00029041,7]
[426926919,1783020640000,-765.66,0.00029041,7]
[426926923,1783020640000,-765.66,0.00029041,7]
[426926912,1783020640000,-765.66,0.00029041,7]
[426926916,1783020640000,-765.66,0.00029041,7]
[426926913,1783020640000,-765.66,0.00029041,7]
[426926924,1783020640000,-765.66,0.00029041,7]
[426926914,1783020640000,-765.66,0.00029041,7]
[426926921,1783020640000,-765.66,0.00029041,7]
[426926922,1783020640000,-765.66,0.00029041,7]
[426926918,1783020640000,-765.66,0.00029041,7]
[426926933,1783020640000,-1359.8,0.00029041,7]
[426926925,1783020640000,-765.73156898,0.00029041,7]
[426926930,1783020640000,-1359.8,0.00029041,7]
[426926935,1783020640000,-1359.8,0.00029041,7]
[426926932,1783020640000,-1359.8,0.00029041,7]
[426926931,1783020640000,-1359.8,0.00029041,7]
[426926936,1783020640000,-1359.8,0.00029041,7]
[426926926,1783020640000,-1359.8,0.00029041,7]
[426926929,1783020640000,-1359.8,0.00029041,7]
[426926928,1783020640000,-1359.8,0.00029041,7]
[426926934,1783020640000,-1359.8,0.00029041,7]
[426926937,1783020640000,-1359.8,0.00029041,7]
[426926939,1783020640000,-1359.8,0.00029041,7]
[426926927,1783020640000,-1359.8,0.00029041,7]
[426926905,1783020640000,-765.66,0.00029041,7]
[426926882,1783020640000,-635.14982542,0.00029041,7]
[426926903,1783020640000,-765.66,0.00029041,7]
[426926938,1783020640000,-1359.8,0.00029041,7]
[426926883,1783020640000,-500.0,0.00029041,2]
[426926880,1783020640000,-500.0,0.00029041,7]
[426926881,1783020640000,-500.0,0.00029041,7]
[426926887,1783020640000,-151.0,0.00029041,7]
[426926885,1783020640000,-500.0,0.00029041,2]
[426926884,1783020640000,-500.0,0.00029041,2]
[426926888,1783020640000,-500.0,0.00029041,7]
[426926886,1783020640000,-501.02001,0.00029041,2]
[426926890,1783020640000,-500.0,0.00029041,7]
[426926900,1783020640000,-408.80992732,0.00029041,7]
[426926889,1783020640000,-500.0,0.00029041,7]
[426926901,1783020640000,-765.66,0.00029041,7]
[426926892,1783020640000,-219.05906251,0.00029041,7]
[426926891,1783020640000,-223.0003,0.00029041,7]
[426926897,1783020640000,-500.0,0.00029041,7]
[426926898,1783020640000,-500.0,0.00029041,7]
[426926895,1783020640000,-526.92525482,0.00029041,7]
[426926893,1783020640000,-500.0,0.00029041,7]
[426926894,1783020640000,-500.0,0.00029041,7]
[426926896,1783020640000,-467.8297911,0.00029041,7]
[426926899,1783020640000,-500.0,0.00029041,7]
[426926904,1783020640000,-765.66,0.00029041,7]
[426926906,1783020640000,-765.66,0.00029041,7]
[426926910,1783020640000,-765.66,0.00029041,7]
[426926908,1783020640000,-765.66,0.00029041,7]
[426926911,1783020640000,-765.66,0.00029041,7]
[426926907,1783020640000,-765.66,0.00029041,7]
[426926947,1783020640000,-1359.8,0.00029041,7]
[426926945,1783020640000,-1359.8,0.00029041,7]
[426926942,1783020640000,-1359.8,0.00029041,7]
[426926973,1783020640000,-894.24,0.00029041,2]
[426926984,1783020640000,-508.84,0.00029041,2]
[426926985,1783020640000,-508.84,0.00029041,2]
[426926983,1783020640000,-508.84,0.00029041,2]
[426926986,1783020640000,-508.84,0.00029041,2]
[426926987,1783020640000,-508.84,0.00029041,2]
[426926994,1783020640000,-508.84,0.00029041,2]
[426926991,1783020640000,-508.84,0.00029041,2]
[426926990,1783020640000,-508.84,0.00029041,2]
[426926988,1783020640000,-508.84,0.00029041,2]
[426926989,1783020640000,-508.84,0.00029041,2]
[426926992,1783020640000,-508.84,0.00029041,2]
[426926993,1783020640000,-508.84,0.00029041,2]
[426926975,1783020640000,-894.24,0.00029041,2]
[426927004,1783020640000,-508.84,0.00029041,2]
[426927005,1783020640000,-508.84,0.00029041,2]
[426926995,1783020640000,-508.84,0.00029041,2]
[426926997,1783020640000,-508.84,0.00029041,2]
[426926946,1783020640000,-1359.8,0.00029041,7]
[426927003,1783020640000,-508.84,0.00029041,2]
[426926999,1783020640000,-508.84,0.00029041,2]
[426927000,1783020640000,-508.84,0.00029041,2]
[426927001,1783020640000,-508.84,0.00029041,2]
[426926998,1783020640000,-508.84,0.00029041,2]
[426927002,1783020640000,-508.84,0.00029041,2]
[426927009,1783020640000,-500.0,0.00029041,2]
[426927007,1783020640000,-500.0,0.00029041,2]
[426927008,1783020640000,-500.0,0.00029041,2]
[426927006,1783020640000,-508.88,0.00029041,2]
[426926970,1783020640000,-894.24,0.00029041,2]
[426926996,1783020640000,-508.84,0.00029041,2]
[426926974,1783020640000,-894.24,0.00029041,2]
[426926949,1783020640000,-1359.83592307,0.00029041,7]
[426926972,1783020640000,-894.24,0.00029041,2]
[426926948,1783020640000,-1359.8,0.00029041,7]
[426926941,1783020640000,-1359.8,0.00029041,7]
[426926940,1783020640000,-1359.8,0.00029041,7]
[426926944,1783020640000,-1359.8,0.00029041,7]
[426926950,1783020640000,-513.5840119,0.00029041,7]
[426926952,1783020640000,-894.24,0.00029041,2]
[426926955,1783020640000,-894.24,0.00029041,2]
[426926954,1783020640000,-894.24,0.00029041,2]
[426926951,1783020640000,-530.56157853,0.00029041,7]
[426926958,1783020640000,-894.24,0.00029041,2]
[426926960,1783020640000,-894.24,0.00029041,2]
[426926943,1783020640000,-1359.8,0.00029041,7]
[426926956,1783020640000,-894.24,0.00029041,2]
[426926964,1783020640000,-894.24,0.00029041,2]
[426926981,1783020640000,-894.24,0.00029041,2]
[426926979,1783020640000,-894.24,0.00029041,2]
[426926976,1783020640000,-894.24,0.00029041,2]
[426926980,1783020640000,-894.24,0.00029041,2]
[426926968,1783020640000,-894.24,0.00029041,2]
[426926977,1783020640000,-894.24,0.00029041,2]
[426926978,1783020640000,-894.24,0.00029041,2]
[426926982,1783020640000,-894.4,0.00029041,2]
[426926966,1783020640000,-894.24,0.00029041,2]
[426926959,1783020640000,-894.24,0.00029041,2]
[426926957,1783020640000,-894.24,0.00029041,2]
[426926962,1783020640000,-894.24,0.00029041,2]
[426927038,1783020641000,-442.6690046,0.00029041,2]
[426927042,1783020641000,-1070.19,0.00029041,2]
[426927039,1783020641000,-500.0,0.00029041,7]
[426927040,1783020641000,-1070.19,0.00029041,2]
[426927041,1783020641000,-1070.19,0.00029041,2]
[426927044,1783020641000,-1070.19,0.00029041,2]
[426927045,1783020641000,-1070.19,0.00029041,2]
[426927046,1783020641000,-1070.19,0.00029041,2]
[426927054,1783020641000,-1070.19,0.00029041,2]
[426927048,1783020641000,-1070.19,0.00029041,2]
[426927049,1783020641000,-1070.19,0.00029041,2]
[426927050,1783020641000,-1070.19,0.00029041,2]
[426927056,1783020641000,-1070.19,0.00029041,2]
[426927053,1783020641000,-1070.19,0.00029041,2]
[426927055,1783020641000,-1070.19,0.00029041,2]
[426927057,1783020641000,-1070.19,0.00029041,2]
[426927024,1783020641000,-500.0,0.00029041,2]
[426927051,1783020641000,-1070.19,0.00029041,2]
[426927047,1783020641000,-1070.19,0.00029041,2]
[426927028,1783020641000,-500.0,0.00029041,2]
[426927015,1783020641000,-500.0,0.00029041,2]
[426927022,1783020641000,-500.0,0.00029041,2]
[426927052,1783020641000,-1070.19,0.00029041,2]
[426927017,1783020641000,-500.0,0.00029041,2]
[426927013,1783020641000,-500.0,0.00029041,2]
[426927012,1783020641000,-500.0,0.00029041,2]
[426927011,1783020641000,-500.0,0.00029041,2]
[426927016,1783020641000,-500.0,0.00029041,2]
[426927018,1783020641000,-500.0,0.00029041,2]
[426927019,1783020641000,-500.0,0.00029041,2]
[426927010,1783020641000,-500.0,0.00029041,2]
[426927014,1783020641000,-500.0,0.00029041,2]
[426927021,1783020641000,-500.0,0.00029041,2]
[426927030,1783020641000,-500.0,0.00029041,2]
[426927031,1783020641000,-500.0,0.00029041,2]
[426927034,1783020641000,-500.0,0.00029041,2]
[426927033,1783020641000,-231.12296143,0.00029041,2]
[426927032,1783020641000,-500.0,0.00029041,2]
[426927036,1783020641000,-500.0,0.00029041,2]
[426927037,1783020641000,-500.0,0.00029041,2]
[426927035,1783020641000,-500.0,0.00029041,2]
[426927026,1783020641000,-500.0,0.00029041,2]
[426927058,1783020641000,-1070.19,0.00029041,2]
[426927043,1783020641000,-1070.19,0.00029041,2]
[426927060,1783020641000,-1070.19,0.00029041,2]
[426927084,1783020641000,-1000.0,0.00029041,2]
[426927085,1783020641000,-1000.0,0.00029041,2]
[426927086,1783020641000,-850.70018276,0.00029041,2]
[426927088,1783020641000,-210.324028,0.00029041,7]
[426927087,1783020641000,-151.0,0.00029041,7]
[426927091,1783020641000,-204.059858,0.00029041,7]
[426927095,1783020641000,-198.01,0.00029055,7]
[426927093,1783020641000,-151.0,0.00029041,7]
[426927083,1783020641000,-1000.0,0.00029041,2]
[426927090,1783020641000,-151.0,0.00029041,7]
[426927089,1783020641000,-151.0,0.00029041,7]
[426927094,1783020641000,-199.112002,0.00029041,7]
[426927097,1783020641000,-15057.08286862,0.00029055,120]
[426927096,1783020641000,-10127.61025561,0.00029055,2]
[426927098,1783020641000,-487.0,0.00029055,2]
[426927102,1783020641000,-221279.68993123,0.00029057,2]
[426927100,1783020641000,-199.46,0.00029056,53]
[426927099,1783020641000,-772.43,0.00029055,2]
[426927092,1783020641000,-151.0,0.00029041,7]
[426927080,1783020641000,-1000.0,0.00029041,2]
[426927079,1783020641000,-1000.0,0.00029041,2]
[426927081,1783020641000,-1000.0,0.00029041,2]
[426927063,1783020641000,-1070.30053482,0.00029041,2]
[426927061,1783020641000,-1070.19,0.00029041,2]
[426927065,1783020641000,-500.0,0.00029041,2]
[426927062,1783020641000,-1070.19,0.00029041,2]
[426927068,1783020641000,-500.0,0.00029041,2]
[426927069,1783020641000,-500.0,0.00029041,2]
[426927064,1783020641000,-500.0,0.00029041,2]
[426927070,1783020641000,-500.0,0.00029041,2]
[426927066,1783020641000,-500.0,0.00029041,2]
[426927067,1783020641000,-500.0,0.00029041,2]
[426927072,1783020641000,-503.02885325,0.00029041,7]
[426927071,1783020641000,-310.07961445,0.00029041,2]
[426927082,1783020641000,-1000.0,0.00029041,2]
[426927073,1783020641000,-433.082499,0.00029041,7]
[426927075,1783020641000,-229.61017315,0.00029041,10]
[426927074,1783020641000,-500.0,0.00029041,7]
[426927077,1783020641000,-5585.5399699,0.00029041,10]
[426927076,1783020641000,-38000.0,0.00029041,10]
[426927078,1783020641000,-1000.0,0.00029041,2]
[426927101,1783020641000,-3836.22208957,0.00029057,2]
[426927059,1783020641000,-1070.19,0.00029041,2]
[426927115,1783020643000,-18604.47262678,0.00029057,2]
[426927204,1783020646000,-1893.6,0.00029057,2]
[426927297,1783020691000,-535.18939622,0.00019967,7]
[426927298,1783020708000,-535.18939622,0.00020367,7]
[426927299,1783020724000,-151.0,0.00020491,14]
[426927300,1783020741000,-362.94296038,0.00020966,7]
[426927301,1783020758000,-535.18939622,0.00020966,7]
[426927302,1783020827000,-200.0,0.00020975,7]
[426927303,1783020838000,-69.08567242,0.00020975,7]
[426927304,1783020891000,-191.14646114,0.00020966,7]
[426927305,1783020945000,-191.14646114,0.00021385,7]
[426927306,1783020998000,-305.95097872,0.00021565,7]
[426927307,1783021009000,-229.2384175,0.00021565,7]
[426927308,1783021062000,-191.14646114,0.00022014,7]
[426927309,1783021228000,5000.0,0.00029055,120]
[426927310,1783021483000,-308.335,0.00022363,7]
[426927313,1783021716000,28139.18288464,0.000118,5]
[426927325,1783021822000,-164.994632,0.00019999,2]
[426927340,1783021833000,-545.19832242,0.000199,2]
[426927339,1783021833000,-164.994632,0.000199,2]
[426928124,1783021844000,-500.0,0.00019999,2]
[426928120,1783021844000,-320.45215792,0.00019999,2]
[426928122,1783021844000,-500.0,0.00019999,2]
[426928096,1783021844000,-199.28463731,0.00019999,2]
[426928118,1783021844000,-500.0,0.00019999,2]
[426928114,1783021844000,-500.0,0.00019999,2]
[426928116,1783021844000,-500.0,0.00019999,2]
[426928108,1783021844000,-249.95521689,0.00019999,2]
[426928100,1783021844000,-500.0,0.00019999,2]
[426928102,1783021844000,-500.0,0.00019999,2]
[426928106,1783021844000,-500.0,0.00019999,2]
[426928090,1783021844000,-500.0,0.00019999,2]
[426928110,1783021844000,-500.0,0.00019999,2]
[426928104,1783021844000,-500.0,0.00019999,2]
[426928098,1783021844000,-207.07114119,0.00019999,2]
[426928094,1783021844000,-431.91599353,0.00019999,2]
[426928083,1783021844000,-4945.77790814,0.000199,2]
[426928079,1783021844000,-164.994632,0.000199,2]
[426928092,1783021844000,-68.08400647,0.00019999,2]
[426928085,1783021844000,-21.24177439,0.00019999,2]
[426928087,1783021844000,-313.76359361,0.00019999,2]
[426928126,1783021844000,-500.0,0.00019999,2]
[426928112,1783021844000,-500.0,0.00019999,2]
[426928128,1783021844000,-500.0,0.00019999,2]
[426928166,1783021844000,-255.3260695,0.000282,2]
[426928132,1783021844000,-46932.3465895,0.0002,5]
[426928181,1783021844000,-2993.14983814,0.00028471,2]
[426928140,1783021844000,-226.85439624,0.00022363,7]
[426928176,1783021844000,-232.959,0.00028218,2]
[426928184,1783021844000,-419.9083861,0.00028471,2]
[426928173,1783021844000,-186.0,0.00028218,2]
[426928172,1783021844000,-446.0,0.00028218,2]
[426928170,1783021844000,-1421.0,0.00028218,2]
[426928161,1783021844000,-198.0,0.00028,2]
[426928164,1783021844000,-280.0,0.00028,2]
[426928156,1783021844000,-2000.0,0.0002793,7]
[426928152,1783021844000,-184.11396256,0.0002589,18]
[426928167,1783021844000,-1845.0,0.00028218,2]
[426928179,1783021844000,-305.95097872,0.00028397,4]
[426928150,1783021844000,-1000.0,0.0002588,2]
[426928157,1783021844000,-153.0,0.00028,2]
[426928154,1783021844000,-213.42,0.000279,2]
[426928148,1783021844000,-5820.9654945,0.00025614,2]
[426928145,1783021844000,-191.14646117,0.00023481,7]
[426928144,1783021844000,-5820.9654945,0.00022757,2]
[426928137,1783021844000,-2314.7503587,0.00021,2]
[426928141,1783021844000,-191.14646114,0.00022643,7]
[426928134,1783021844000,-269.185,0.0002,7]
[426928130,1783021844000,-500.0,0.00019999,2]
[426928160,1783021844000,-291.0,0.00028,2]
[426928495,1783021847000,-1726.0,0.00028471,2]
[426929871,1783022510000,5000.0,0.00029053,120]
[426929872,1783022821000,-151.0,0.000194,2]
[426929873,1783022832000,-151.0,0.0002,2]
[426930159,1783023039000,-500.0,0.00027305,2]
[426930175,1783023039000,-416.276781,0.00027305,2]
[426930146,1783023039000,-500.0,0.00027305,2]
[426930167,1783023039000,-500.0,0.00027305,2]
[426930144,1783023039000,-500.0,0.00027305,2]
[426930155,1783023039000,-500.0,0.00027305,2]
[426930177,1783023039000,-500.0,0.00027305,2]
[426930157,1783023039000,-165.46973025,0.00027305,2]
[426930172,1783023039000,-500.0,0.00027305,2]
[426930161,1783023039000,-500.0,0.00027305,2]
[426930163,1783023039000,-500.0,0.00027305,2]
[426930176,1783023039000,-500.0,0.00027305,2]
[426930165,1783023039000,-500.0,0.00027305,2]
[426930153,1783023039000,-500.0,0.00027305,2]
[426930169,1783023039000,-500.0,0.00027305,2]
[426930148,1783023039000,-500.0,0.00027305,2]
[426930126,1783023039000,-6169.4025326,0.00025311,2]
[426930151,1783023039000,-500.0,0.00027305,2]
[426930174,1783023039000,-500.0,0.00027305,2]
[426930122,1783023039000,-283.39275592,0.00024152,7]
[426930124,1783023039000,-283.39275596,0.00025047,7]
[426930120,1783023039000,-283.39275592,0.00023481,7]
[426930114,1783023039000,-6.14247655,0.0002,2]
[426930129,1783023039000,-188.0,0.0002589,14]
[426930116,1783023039000,-283.39275592,0.00022363,7]
[426930118,1783023039000,-283.39275592,0.00022811,7]
[426930131,1783023039000,-284.44904495,0.00027305,2]
[426930136,1783023039000,-500.0,0.00027305,2]
[426930133,1783023039000,-500.0,0.00027305,2]
[426930134,1783023039000,-500.0,0.00027305,2]
[426930140,1783023039000,-500.0,0.00027305,2]
[426930138,1783023039000,-500.0,0.00027305,2]
[426930142,1783023039000,-624.46704142,0.00027305,2]
[426930150,1783023039000,-500.0,0.00027305,2]
[426930170,1783023039000,-500.0,0.00027305,2]
[426930218,1783023039000,-150.93,0.00028218,2]
[426930190,1783023039000,-500.0,0.00027305,2]
[426930216,1783023039000,-3913.8266406,0.00028118,2]
[426930223,1783023039000,-1845.0,0.00028218,2]
[426930221,1783023039000,-1421.0,0.00028218,2]
[426930225,1783023039000,-446.0,0.00028218,2]
[426930231,1783023039000,-194.82820705,0.00028842,2]
[426930229,1783023039000,-500.0,0.00028557,10]
[426930214,1783023039000,-284.0,0.00028,2]
[426930227,1783023039000,-186.0,0.00028218,2]
[426930235,1783023039000,-200.0,0.00028849,12]
[426930237,1783023039000,-1000.0,0.00028953,2]
[426930238,1783023039000,-153.0,0.00029,2]
[426930240,1783023039000,-303.0,0.00029,2]
[426930242,1783023039000,-47.55641159,0.00029,2]
[426930179,1783023039000,-588.97137742,0.00027305,2]
[426930233,1783023039000,-15.96260327,0.00028842,2]
[426930209,1783023039000,-153.0,0.00028,2]
[426930220,1783023039000,-250.0,0.00028218,2]
[426930211,1783023039000,-303.0,0.00028,2]
[426930192,1783023039000,-500.0,0.00027305,2]
[426930194,1783023039000,-500.0,0.00027305,2]
[426930181,1783023039000,-500.0,0.00027305,2]
[426930207,1783023039000,-183.21754989,0.00027397,30]
[426930178,1783023039000,-500.0,0.00027305,2]
[426930196,1783023039000,-500.0,0.00027305,2]
[426930183,1783023039000,-500.0,0.00027305,2]
[426930184,1783023039000,-500.0,0.00027305,2]
[426930197,1783023039000,-500.0,0.00027305,2]
[426930199,1783023039000,-500.0,0.00027305,2]
[426930188,1783023039000,-500.0,0.00027305,2]
[426930201,1783023039000,-350.0,0.00027305,2]
[426930203,1783023039000,-500.0,0.00027305,2]
[426930205,1783023039000,-500.0,0.00027397,30]
[426930213,1783023039000,-196.0,0.00028,2]
[426930186,1783023039000,-546.64304499,0.00027305,2]
[426930796,1783023044000,-148.44358841,0.00029,2]
[426930799,1783023044000,-284.0,0.00029,2]
[426930801,1783023044000,-1213.38862679,0.00029,2]
[426930807,1783023044000,-280.97796276,0.00029041,2]
[426930805,1783023044000,-237.54844496,0.00029041,2]
[426930803,1783023044000,-361.12257763,0.00029041,2]
[426931195,1783023047000,-1000.0,0.00029052,2]
[426931183,1783023047000,-859.65,0.00029043,3]
[426931181,1783023047000,-286.55,0.00029043,3]
[426931193,1783023047000,-1000.0,0.00029052,2]
[426931197,1783023047000,-1009.68650953,0.00029052,2]
[426931179,1783023047000,-40.09601205,0.00029041,2]
[426931187,1783023047000,-1000.0,0.00029052,2]
[426931199,1783023047000,-4879.79758394,0.00029053,2]
[426931201,1783023047000,-975.70493985,0.00029053,2]
[426931191,1783023047000,-1000.0,0.00029052,2]
[426931189,1783023047000,-1000.0,0.00029052,2]
[426931185,1783023047000,-502.12801059,0.00029052,7]
[426931343,1783023788000,5000.0,0.00029052,120]
[426931344,1783023830000,5000.0,0.00029052,120]
[426931345,1783024159000,3395.0,0.000285,120]
[426931688,1783024238000,-184.0,0.00029,2]
[426931699,1783024238000,-347.72894922,0.00029041,2]
[426931692,1783024238000,-304.56739797,0.00029041,2]
[426931687,1783024238000,-284.0,0.00029,2]
[426931694,1783024238000,-507.10159241,0.00029041,7]
[426931697,1783024238000,-367.42357736,0.00029041,2]
[426931717,1783024238000,-591.75316785,0.00029046,2]
[426931704,1783024238000,-500.0,0.00029046,2]
[426931727,1783024238000,-500.0,0.00029046,2]
[426931715,1783024238000,-500.0,0.00029046,2]
[426931719,1783024238000,-500.0,0.00029046,2]
[426931701,1783024238000,-729.04,0.00029042,3]
[426931707,1783024238000,-500.0,0.00029046,2]
[426931690,1783024238000,-264.0,0.00029,2]
[426931709,1783024238000,-500.0,0.00029046,2]
[426931711,1783024238000,-500.0,0.00029046,2]
[426931713,1783024238000,-500.0,0.00029046,2]
[426931696,1783024238000,-366.57474381,0.00029041,2]
[426931744,1783024238000,-178.989264,0.00029052,7]
[426931723,1783024238000,-500.0,0.00029046,2]
[426931733,1783024238000,-500.0,0.00029046,2]
[426931705,1783024238000,-308.30581146,0.00029046,2]
[426931685,1783024238000,-159.93020067,0.00029,2]
[426931680,1783024238000,-609.47508846,0.00028952,2]
[426931683,1783024238000,-1000.0,0.00028953,2]
[426931645,1783024238000,-170.0,0.0002589,18]
[426931649,1783024238000,-154.44167503,0.00028,2]
[426931647,1783024238000,-211.965076,0.00027397,30]
[426931643,1783024238000,-151.0,0.00025114,2]
[426931653,1783024238000,-184.0,0.00028,2]